bitfinex/quotes_SOLUSD_20241122
["timestamp","ask_amount","ask_price","bid_price","bid_amount"]
[1732245944182,23.776884,262.65,262.51,20.0]
[1732245944389,115.325,262.66,262.51,20.0]
[1732245945219,115.325,262.66,262.51,24.86382978]
[1732245945390,115.325,262.66,262.52,4.86382978]
[1732245945587,115.325,262.72,262.52,4.86382978]
[1732245945912,23.60301751,262.71,262.51,20.0]
[1732245946613,23.776884,262.7,262.51,20.0]
[1732245947110,23.776884,262.68,262.51,24.86382978]
[1732245947285,23.776884,262.68,262.51,20.0]
[1732245947614,23.60301751,262.63,262.51,20.0]
[1732245947788,23.60301751,262.6,262.43,12.2055]
[1732245947992,115.325,262.59,262.43,12.2055]
[1732245948394,23.776884,262.63,262.44,0.57155207]
[1732245948792,23.776884,262.61,262.43,17.06932978]
[1732245949014,23.776884,262.61,262.44,0.57139505]
[1732245949309,23.776884,262.61,262.44,4.86382978]
[1732245950714,115.325,262.6,262.44,4.86382978]
[1732245950901,23.776884,262.59,262.44,4.86382978]
[1732245951100,115.325,262.6,262.45,5.13333573]
[1732245951297,115.325,262.6,262.46,4.86382978]
[1732245951611,23.776884,262.59,262.46,4.86382978]
[1732245952290,115.325,262.68,262.46,4.86382978]
[1732245952609,35.98471751,262.7,262.46,4.86382978]
[1732245952610,139.101884,262.67,262.46,4.86382978]
[1732245952789,115.325,262.71,262.47,0.57135568]
[1732245952989,115.325,262.78,262.5,12.2055]
[1732245953189,115.325,262.78,262.52,12.2055]
[1732245953387,115.325,262.8,262.53,25.43483898]
[1732245953605,115.325,262.79,262.53,25.43483898]
[1732245954216,115.325,262.84,262.57,14.7055]
[1732245954514,115.325,262.86,262.6,20.0]
[1732245955010,115.325,262.85,262.6,20.0]
[1732245955220,115.325,262.85,262.61,0.57088369]
[1732245955398,138.92801751,262.85,262.61,0.57088369]
[1732245955592,23.776884,262.84,262.6,20.0]
[1732245955799,23.60301751,262.81,262.6,20.0]
[1732245956007,23.776884,262.8,262.6,20.0]
[1732245956813,23.776884,262.78,262.6,20.0]
[1732245957019,115.325,262.84,262.6,20.0]
[1732245957195,23.60301751,262.87,262.62,20.0]
[1732245957396,23.60301751,262.85,262.62,20.0]
[1732245957814,23.60301751,262.86,262.6,20.0]
[1732245957999,115.325,262.91,262.6,20.0]
[1732245958000,23.60301751,262.84,262.6,20.0]
[1732245958619,23.60301751,262.78,262.59,12.2055]
[1732245958831,23.776884,262.76,262.59,12.2055]
[1732245959903,23.776884,262.76,262.6,20.0]
[1732245962516,47.224875,263.23,262.6,20.0]
[1732245962517,115.325,262.83,262.6,24.86382978]
[1732245962720,23.60301751,262.85,262.62,20.0]
[1732245962897,23.60301751,262.83,262.62,20.0]
[1732245963399,115.325,262.82,262.6,20.0]
[1732245964217,138.92801751,262.81,262.6,20.0]
[1732245964418,23.60301751,262.79,262.59,12.2055]
[1732245964610,23.60301751,262.77,262.59,12.2055]
[1732245965011,23.60301751,262.75,262.59,12.2055]
[1732245965328,23.776884,262.74,262.59,12.2055]
[1732245965521,23.776884,262.72,262.59,12.2055]
[1732245965701,23.776884,262.7,262.59,12.2055]
[1732245966301,115.325,262.71,262.59,12.2055]
[1732245966806,115.325,262.76,262.59,12.2055]
[1732245967012,115.325,262.76,262.59,17.06932978]
[1732245967306,23.60301751,262.81,262.6,20.0]
[1732245967499,115.325,262.8,262.6,20.0]
[1732245968423,115.325,262.83,262.62,20.0]
[1732245969024,115.325,262.83,262.63,4.86382978]
[1732245969231,115.325,262.89,262.63,4.86382978]
[1732245969523,138.92801751,262.9,262.65,20.0]
[1732245969904,138.92801751,262.9,262.63,4.86382978]
[1732245970417,23.776884,262.89,262.63,4.86382978]
[1732245970823,138.92801751,262.9,262.6,20.0]
[1732245971129,138.92801751,262.9,262.6,24.86382978]
[1732245971713,115.325,262.89,262.62,2.5]
[1732245971909,115.325,262.89,262.63,23.12783573]
[1732245972108,115.325,262.93,262.64,20.57068952]
[1732245972422,115.325,262.93,262.65,4.86382978]
[1732245972727,115.325,262.93,262.66,20.5707085]
[1732245973029,115.325,262.96,262.68,20.0]
[1732245973322,115.325,262.96,262.67,24.16532978]
[1732245973323,130.516155,263.01,262.72,20.0]
[1732245973531,115.325,263.01,262.73,0.57055686]
[1732245973735,23.60301751,262.97,262.72,25.13333573]
[1732245973907,115.325,262.96,262.72,20.0]
[1732245974823,115.325,262.96,262.73,0.57070059]
[1732245975010,115.325,263.02,262.75,20.0]
[1732245975208,23.60301751,263.05,262.75,20.0]
[1732245975209,115.325,263.04,262.76,5.70383457]
[1732245975518,115.325,263.04,262.77,12.9945]
[1732245975725,115.325,263.04,262.8,20.0]
[1732245975912,15.18671,263.08,262.82,2.5]
[1732245976107,115.325,263.12,262.83,12.9945]
[1732245976311,5.9148042,263.6,263.53,2.5]
[1732245976508,5.9148042,263.87,263.54,23.00998584]
[1732245976712,2.49999965,263.96,263.55,20.0]
[1732245976910,2.49999965,263.84,263.55,20.0]
[1732245977119,4.97999965,263.94,263.5,1.97439584]
[1732245977317,23.60301751,263.85,263.78,91.24706846]
[1732245977532,7.42133274,263.95,263.79,31.69468048]
[1732245977739,6.26849965,263.96,263.79,31.69468048]
[1732245977905,23.60301751,263.91,263.79,31.69468048]
[1732245978234,2.47999965,263.97,263.88,66.59622658]
[1732245978427,23.60301751,263.89,263.88,66.59622658]
[1732245979327,26.08301716,263.89,263.88,66.59622658]
[1732245979516,23.60301751,263.9,263.88,66.59622658]
[1732245979722,23.60301751,263.89,263.88,99.70798108]
[1732245979904,23.60301751,263.89,263.88,33.1117545]
[1732245980113,26.08301716,263.89,263.88,33.1117545]
[1732245980316,26.08301716,263.89,263.78,91.24706846]
[1732245980611,37.82506448,263.84,263.78,91.24706846]
[1732245980817,37.82506448,263.82,263.78,91.24706846]
[1732245981027,37.82506448,263.8,263.66,66.59622658]
[1732245981217,37.82506448,263.72,263.53,2.5]
[1732245981528,37.82506448,263.9,263.53,3.66654143]
[1732245981529,37.82506448,263.7,263.53,3.66654143]
[1732245981731,23.776884,263.67,263.5,1.97439584]
[1732245981931,37.82506448,263.64,263.5,1.97439584]
[1732245982138,23.776884,263.67,263.43,2.5]
[1732245982139,23.776884,263.61,263.43,2.5]
[1732245982337,23.776884,263.59,263.43,2.5]
[1732245982521,23.776884,263.59,263.5,2.5]
[1732245982946,3.666541,263.69,263.61,2.5]
[1732245983227,37.82506448,263.7,263.53,2.5]
[1732245983435,37.82506448,263.72,263.56,2.5]
[1732245983624,37.82506448,263.8,263.65,2.5]
[1732245983935,37.82506448,263.8,263.62,2.5]
[1732245984146,37.82506448,263.74,263.6,2.5]
[1732245984430,37.82506448,263.68,263.52,2.5]
[1732245984815,37.82506448,263.77,263.45,2.5]
[1732245984816,23.776884,263.63,263.45,2.5]
[1732245985013,3.7918,263.73,263.45,2.5]
[1732245985014,23.776884,263.6,263.45,2.5]
[1732245985426,37.82506448,263.61,263.42,2.5]
[1732245985617,3.7918,263.73,263.42,2.5]
[1732245985618,23.776884,263.54,263.42,2.5]
[1732245985819,23.776884,263.54,263.09,11.55021055]
[1732245985820,23.776884,263.54,263.44,2.5]
[1732245986045,23.776884,263.54,263.42,2.5]
[1732245986332,23.776884,263.54,263.44,2.5]
[1732245986544,37.82506448,263.55,263.42,2.5]
[1732245986713,23.776884,263.54,263.42,2.5]
[1732245986917,23.776884,263.54,263.37,2.5]
[1732245987117,23.776884,263.48,263.38,2.5]
[1732245987343,23.776884,263.48,263.21,12.9945]
[1732245987344,23.776884,263.48,263.34,2.5]
[1732245987734,23.776884,263.46,263.32,2.5]
[1732245988424,23.776884,263.48,263.35,2.5]
[1732245989231,37.82506448,263.47,263.35,2.5]
[1732245989423,23.776884,263.46,263.3,2.5]
[1732245989825,23.776884,263.46,263.33,2.5]
[1732245990020,23.776884,263.46,263.31,2.5]
[1732245990439,37.82506448,263.45,263.31,2.5]
[1732245990621,37.82506448,263.51,263.36,2.5]
[1732245991022,37.82506448,263.55,263.4,2.5]
[1732245991437,37.82506448,263.55,263.38,2.5]
[1732245991642,37.82506448,263.51,263.36,2.5]
[1732245991847,37.82506448,263.49,263.36,2.5]
[1732245992135,37.82506448,263.47,263.36,2.5]
[1732245992846,37.82506448,263.41,263.26,2.5]
[1732245993019,23.776884,263.4,263.27,2.5]
[1732245993225,23.776884,263.4,263.09,5.0]
[1732245993226,23.776884,263.36,263.18,2.5]
[1732245993549,37.82506448,263.51,262.86,13.35366422]
[1732245993550,23.776884,263.25,263.12,2.5]
[1732245993729,23.776884,263.25,263.13,2.5]
[1732245993920,23.776884,263.25,263.17,2.5]
[1732245994133,23.776884,263.25,263.19,2.5]
[1732245994336,23.776884,263.25,263.17,2.5]
[1732245994551,23.776884,263.25,263.15,2.5]
[1732245994732,23.776884,263.25,263.17,2.5]
[1732245995541,23.776884,263.25,263.15,2.5]
[1732245995720,23.776884,263.25,263.19,2.5]
[1732245995923,23.776884,263.25,263.17,2.5]
[1732245996135,37.82506448,263.42,263.28,2.5]
[1732245996344,2.5,263.44,263.28,2.5]
[1732245996531,47.4206,263.6,263.19,20.0]
[1732245996532,3.794,263.58,263.39,2.5]
[1732245996735,37.82506448,263.55,263.37,2.5]
[1732245996939,37.82506448,263.5,263.35,2.5]
[1732245997242,37.82506448,263.48,263.35,2.5]
[1732245997440,37.82506448,263.48,263.33,2.5]
[1732245997644,2.47999965,263.56,263.18,0.56956815]
[1732245997645,37.82506448,263.5,263.29,2.5]
[1732245997944,37.82506448,263.48,263.29,2.5]
[1732245998332,37.82506448,263.42,263.27,2.5]
[1732245998730,37.82506448,263.47,263.29,2.5]
[1732245998920,37.82506448,263.45,263.29,2.5]
[1732245999328,37.82506448,263.51,263.34,2.5]
[1732245999619,7.44198322,263.59,263.36,2.5]
[1732245999620,37.82506448,263.54,263.36,2.5]
[1732246000028,37.82506448,263.52,263.38,2.5]
[1732246000230,37.82506448,263.56,263.38,2.5]
[1732246000434,37.82506448,263.56,263.4,2.5]
[1732246000949,37.82506448,263.5,263.36,2.5]
[1732246001246,37.82506448,263.48,263.32,2.5]
[1732246001418,37.82506448,263.44,263.28,2.5]
[1732246001624,37.82506448,263.42,263.29,2.5]
[1732246002045,23.776884,263.41,263.26,2.5]
[1732246002647,37.82506448,263.51,263.27,2.5]
[1732246002648,23.776884,263.39,263.27,2.5]
[1732246002832,23.776884,263.39,263.25,2.5]
[1732246003029,23.776884,263.41,263.3,2.5]
[1732246003331,23.776884,263.43,263.26,2.5]
[1732246003660,23.776884,263.43,263.28,2.5]
[1732246004627,6.93032162,263.17,263.16,32.8284]
[1732246004827,23.776884,263.41,263.17,20.0]
[1732246005037,23.776884,263.39,263.18,0.5696309]
[1732246005243,23.776884,263.37,263.18,0.5696309]
[1732246005544,23.776884,263.35,263.15,0.56970152]
[1732246005722,23.776884,263.35,263.16,6.4052]
[1732246005928,0.56967838,263.43,263.17,0.56963591]
[1732246006125,0.56967838,263.47,263.18,5.89613469]
[1732246006325,0.56967838,263.47,263.19,0.56953877]
[1732246006751,0.56967838,263.47,263.2,25.89613469]
[1732246007049,37.82506448,263.44,263.21,0.56954895]
[1732246007242,0.56967838,263.43,263.21,0.56954895]
[1732246007443,37.82506448,263.38,263.16,6.4052]
[1732246007747,37.82506448,263.34,263.16,6.4052]
[1732246007934,0.56967838,263.33,263.16,6.4052]
[1732246008245,23.776884,263.32,263.16,6.4052]
[1732246008549,23.776884,263.3,263.16,6.4052]
[1732246008844,23.776884,263.28,263.08,0.5698263]
[1732246009040,23.776884,263.28,263.08,4.3768263]
[1732246009240,0.56967838,263.33,263.12,23.807]
[1732246009555,137.7,263.4,263.14,20.0]
[1732246009556,0.56967838,263.39,263.14,20.0]
[1732246009741,38.39474286,263.39,263.15,0.56965864]
[1732246010344,0.56967838,263.39,263.16,20.0]
[1732246010542,0.56967838,263.42,263.17,0.5696224]
[1732246010743,0.56967838,263.42,263.17,6.46575709]
[1732246011052,0.56967838,263.42,263.18,20.0]
[1732246011242,0.56967838,263.42,263.19,0.56966127]
[1732246011641,0.56967838,263.44,263.21,20.0]
[1732246011954,0.56967838,263.43,263.24,20.0]
[1732246012245,0.56967838,263.48,263.26,20.0]
[1732246012640,0.56967838,263.51,263.26,20.0]
[1732246012840,37.82506448,263.48,263.26,20.0]
[1732246013046,0.56967838,263.47,263.26,20.0]
[1732246013235,0.56967838,263.47,263.24,20.0]
[1732246013236,37.82506448,263.42,263.24,20.0]
[1732246013430,23.776884,263.4,263.24,20.0]
[1732246013649,23.776884,263.38,263.24,20.0]
[1732246013849,23.776884,263.36,263.24,20.0]
[1732246014059,23.776884,263.36,263.17,5.89613469]
[1732246014060,23.776884,263.34,263.17,5.89613469]
[1732246014252,37.82506448,263.37,263.17,5.89613469]
[1732246014253,23.776884,263.32,263.17,5.89613469]
[1732246014558,23.776884,263.3,263.13,6.4076]
[1732246014855,23.776884,263.28,263.13,6.4076]
[1732246015032,23.776884,263.26,263.13,6.4076]
[1732246015232,23.776884,263.24,263.13,6.4076]
[1732246015442,23.776884,263.22,263.03,6.4076]
[1732246015651,23.776884,263.22,263.04,0.57006741]
[1732246015652,0.56967838,263.21,263.04,0.57006741]
[1732246016051,0.56967838,263.21,263.03,12.30373469]
[1732246016255,38.39474286,263.21,263.03,12.30373469]
[1732246016437,37.82506448,263.19,263.03,5.89613469]
[1732246016757,37.82506448,263.15,262.95,5.89613469]
[1732246016941,37.82506448,263.13,262.95,5.89613469]
[1732246017137,0.56967838,263.12,262.89,5.89613469]
[1732246017335,0.56967838,263.12,262.9,0.57033024]
[1732246017536,23.776884,263.11,262.91,5.89613469]
[1732246017735,12.8902,263.22,262.92,0.57026778]
[1732246017736,23.776884,263.09,262.92,0.57026778]
[1732246017958,23.776884,263.09,262.93,5.89613469]
[1732246018141,23.776884,263.07,262.94,20.57023907]
[1732246018349,0.56967838,263.06,262.94,20.0]
[1732246018538,23.776884,263.05,262.94,20.0]
[1732246018738,23.776884,263.03,262.94,20.0]
[1732246019357,23.776884,263.03,262.86,20.57034958]
[1732246019565,23.776884,263.03,262.89,5.89613469]
[1732246019862,23.776884,263.03,262.9,0.57034199]
[1732246020864,23.776884,263.03,262.91,0.57034323]
[1732246021155,23.776884,263.01,262.86,20.57034323]
[1732246021357,23.776884,263.01,262.86,0.57034323]
[1732246021557,0.56967838,263.08,262.86,0.57034323]
[1732246021755,0.56967838,263.13,262.87,3.807]
[1732246022067,38.39474286,263.13,262.88,0.5701978]
[1732246022559,37.82506448,263.09,262.88,0.5701978]
[1732246022738,0.56967838,263.08,262.86,20.0]
[1732246023142,23.776884,263.07,262.86,20.0]
[1732246023346,23.776884,263.05,262.85,6.97801002]
[1732246023545,23.776884,263.03,262.85,6.4076]
[1732246023741,23.776884,263.01,262.85,6.4076]
[1732246023944,37.82506448,263.05,262.85,6.4076]
[1732246023945,23.776884,262.99,262.85,6.4076]
[1732246024361,23.776884,262.99,262.86,0.57041622]
[1732246024865,23.776884,262.97,262.79,0.57043601]
[1732246025061,23.776884,262.95,262.74,0.57069402]
[1732246025367,23.776884,262.93,262.74,0.57069402]
[1732246025549,23.776884,262.91,262.74,0.57069402]
[1732246025749,4.58103916,263.29,263.05,2.5]
[1732246026051,37.82506448,263.3,263.06,0.56986099]
[1732246026271,37.82506448,263.26,262.97,0.57000465]
[1732246026444,137.7,263.29,262.97,0.57000465]
[1732246026649,37.82506448,263.1,262.87,4.878638]
[1732246026864,175.52506448,263.18,262.88,0.57046956]
[1732246027147,37.82506448,263.25,262.8,6.4076]
[1732246027148,37.82506448,263.1,262.82,0.57031898]
[1732246027357,37.82506448,263.08,262.8,6.4076]
[1732246027766,37.82506448,263.04,262.8,6.4076]
[1732246027956,37.82506448,262.96,262.7,6.4076]
[1732246028178,23.776884,262.95,262.7,6.4076]
[1732246028948,37.82506448,262.88,262.6,0.57074825]
[1732246029249,23.776884,262.87,262.6,0.57074825]
[1732246029947,23.776884,262.91,262.6,0.57074825]
[1732246030149,2.5,263.04,262.6,0.57074825]
[1732246030150,137.7,262.97,262.63,2.5]
[1732246030351,37.82506448,262.99,262.67,2.5]
[1732246030564,37.82506448,263.01,262.68,3.07061207]
[1732246030772,37.82506448,263.01,262.7,2.5]
[1732246030957,137.7,263.32,262.76,29.2376]
[1732246031164,137.7,263.42,263.13,2.5]
[1732246031347,137.7,263.42,263.0,6.4076]
[1732246031348,137.7,263.49,263.2,2.5]
[1732246031549,137.7,263.56,263.21,0.56955291]
[1732246031754,175.52506448,263.61,263.24,2.5]
[1732246031949,175.52506448,263.61,263.25,20.56940292]
[1732246032171,175.52506448,263.61,263.26,22.5]
[1732246032371,13.2817,263.65,263.33,2.5]
[1732246032578,13.2817,263.65,263.35,20.0]
[1732246032781,13.2817,263.65,263.36,6.29659889]
[1732246033063,13.2817,263.65,263.37,20.0]
[1732246033468,13.2817,263.65,263.36,0.56922512]
[1732246033653,13.2817,263.65,263.31,20.56927915]
[1732246034268,37.82506448,263.63,263.31,0.56927915]
[1732246034567,37.82506448,263.63,263.32,0.56934171]
[1732246034972,12.4198,263.8,263.4,2.5]
[1732246035163,30.8161,263.81,263.5,2.5]
[1732246035356,30.8161,263.81,263.51,6.29623142]
[1732246035694,30.8161,263.81,263.52,20.0]
[1732246035848,30.8161,263.81,263.53,6.24564348]
[1732246036054,37.82506448,263.84,263.54,20.0]
[1732246036251,37.82506448,263.84,263.56,20.0]
[1732246036580,37.82506448,263.84,263.57,5.67681821]
[1732246036867,37.82506448,263.82,263.58,20.0]
[1732246037067,37.82506448,263.8,263.6,20.0]
[1732246037248,37.82506448,263.78,263.6,20.0]
[1732246037452,37.82506448,263.76,263.6,20.0]
[1732246037674,37.82506448,263.72,263.53,20.0]
[1732246037879,37.82506448,263.72,263.42,20.0]
[1732246038053,37.82506448,263.74,263.52,20.0]
[1732246038248,37.82506448,263.7,263.52,20.0]
[1732246038456,37.82506448,263.7,263.39,0.56908647]
[1732246038656,137.7,263.91,263.52,2.5]
[1732246038970,137.7,263.96,263.61,2.5]
[1732246039177,2.47999965,263.99,263.62,5.42454599]
[1732246039178,37.82506448,263.95,263.62,5.42454599]
[1732246039352,37.82506448,263.94,263.62,10.55144416]
[1732246039558,37.82506448,263.94,263.63,20.0]
[1732246039763,37.82506448,263.94,263.64,5.12689817]
[1732246039983,37.82506448,263.96,263.65,20.0]
[1732246040173,175.52506448,263.98,263.65,30.55144416]
[1732246040372,37.82506448,263.94,263.65,25.12689817]
[1732246040555,37.82506448,263.92,263.65,25.12689817]
[1732246040755,37.82506448,263.92,263.6,20.0]
[1732246041076,37.82506448,263.92,263.61,20.0]
[1732246041378,37.82506448,263.94,263.62,25.42454599]
[1732246041684,5.100062,264.0,263.72,5.0]
[1732246041872,5.100062,264.0,263.76,2.5]
[1732246042054,5.100062,264.0,263.77,29.27235849]
[1732246042258,5.100062,264.0,263.78,23.3928125]
[1732246042465,5.100062,264.0,263.79,29.27235849]
[1732246042880,5.100062,264.0,263.8,3.3928125]
[1732246043062,5.100062,264.0,263.81,28.94551465]
[1732246043259,5.100062,264.0,263.82,3.96096125]
[1732246043462,5.100062,264.0,263.84,20.0]
[1732246043676,5.100062,264.0,263.85,5.55270215]
[1732246043874,5.100062,264.0,263.86,20.0]
[1732246044175,5.100062,264.0,263.88,20.0]
[1732246044378,5.100062,264.0,263.9,20.0]
[1732246044582,5.100062,264.0,263.92,20.0]
[1732246044784,5.100062,264.0,263.93,5.17178462]
[1732246045081,5.100062,264.0,263.94,20.0]
[1732246045289,5.100062,264.0,263.96,20.0]
[1732246045580,5.100062,264.0,263.97,5.17178462]
[1732246046481,5.100062,264.0,263.98,20.0]
[1732246046664,5.100062,264.0,263.97,5.17178462]
[1732246046984,5.100062,264.0,263.98,20.0]
[1732246047581,23.776884,263.99,263.97,5.17178462]
[1732246047783,23.776884,263.99,263.83,0.56812682]
[1732246047992,23.776884,263.99,263.84,5.17178462]
[1732246048201,23.776884,263.99,263.8,5.17178462]
[1732246048674,23.776884,263.99,263.81,0.56833483]
[1732246048877,23.776884,263.99,263.71,0.56832871]
[1732246049176,23.776884,263.99,263.81,5.17178462]
[1732246049377,23.776884,263.99,263.82,0.56823048]
[1732246049574,23.776884,263.99,263.83,5.39567351]
[1732246050182,23.776884,263.99,263.84,20.0]
[1732246050398,23.776884,263.99,263.85,5.39567351]
[1732246050607,23.776884,263.99,263.86,20.0]
[1732246050889,23.776884,263.99,263.87,5.39567351]
[1732246051669,5.100062,264.0,263.87,5.39567351]
[1732246052370,5.100062,264.0,263.88,20.0]
[1732246052567,5.100062,264.0,263.89,24.7648124]
[1732246053288,5.100062,264.0,263.89,4.7648124]
[1732246055501,23.776884,263.99,263.89,4.7648124]
[1732246056589,23.776884,263.99,263.76,4.91214573]
[1732246056782,23.776884,263.99,263.77,0.56827001]
[1732246056981,23.776884,263.99,263.78,4.91214573]
[1732246057180,23.776884,263.99,263.79,20.56829153]
[1732246057382,23.776884,263.99,263.8,4.91214573]
[1732246057583,23.776884,263.99,263.81,20.56826343]
[1732246057788,23.776884,263.99,263.82,4.91214573]
[1732246057983,23.776884,263.99,263.83,20.56827388]
[1732246058188,23.776884,263.99,263.84,24.91214573]
[1732246058498,23.776884,263.99,263.69,5.94227315]
[1732246058499,23.776884,263.95,263.71,0.56829281]
[1732246058994,23.776884,263.95,263.72,9.8357362]
[1732246059196,23.776884,263.99,263.73,0.5683998]
[1732246059383,23.776884,263.99,263.74,4.91214573]
[1732246059585,23.776884,263.99,263.75,20.56826608]
[1732246059793,23.776884,263.99,263.76,4.91214573]
[1732246059979,37.82506448,263.98,263.77,20.56840601]
[1732246060179,23.776884,263.97,263.77,20.56840601]
[1732246060597,23.776884,263.97,263.77,0.56840601]
[1732246060896,8.887962,264.0,263.71,0.56844063]
[1732246060897,23.776884,263.99,263.71,0.56844063]
[1732246061089,23.776884,263.97,263.72,24.91214573]
[1732246061284,23.776884,263.97,263.73,20.56842861]
[1732246061600,23.776884,263.99,263.74,24.91214573]
[1732246061777,61.60194848,263.99,263.75,25.491924]
[1732246061982,23.776884,263.96,263.75,20.56833353]
[1732246062192,5.100062,264.0,263.75,25.48047926]
[1732246062394,5.100062,264.0,263.76,24.91214573]
[1732246062682,5.100062,264.0,263.77,20.56835264]
[1732246063014,37.82506448,263.96,263.79,20.0]
[1732246063192,37.82506448,263.9,263.68,0.56840657]
[1732246063497,37.82506448,263.88,263.68,5.71888564]
[1732246063703,37.82506448,263.86,263.68,5.71888564]
[1732246063908,23.776884,263.85,263.65,0.56871144]
[1732246064283,23.776884,263.87,263.66,5.15047907]
[1732246064495,37.82506448,263.84,263.66,5.15047907]
[1732246064690,23.776884,263.81,263.58,0.56867581]
[1732246065091,23.776884,263.81,263.51,0.56882783]
[1732246065092,23.776884,263.77,263.51,0.56882783]
[1732246065403,23.776884,263.66,263.47,0.56894731]
[1732246065607,23.776884,263.66,263.4,4.92359047]
[1732246065813,23.776884,263.66,263.41,0.56917119]
[1732246066405,23.776884,263.66,263.42,12.57406954]
[1732246066586,23.776884,263.66,263.43,0.56894089]
[1732246066901,23.776884,263.68,263.44,4.92359047]
[1732246067110,23.776884,263.68,263.45,0.56910718]
[1732246067317,23.776884,263.68,263.45,5.49269765]
[1732246067781,23.776884,263.7,263.45,5.49269765]
[1732246067986,23.776884,263.7,263.46,20.0]
[1732246068196,23.776884,263.68,263.47,0.56904936]
[1732246068820,23.776884,263.68,263.4,0.5690319]
[1732246069110,23.776884,263.7,263.41,4.92359047]
[1732246069314,23.776884,263.7,263.42,0.56904546]
[1732246069689,37.82506448,263.67,263.42,20.56904546]
[1732246070009,23.776884,263.66,263.42,0.56904546]
[1732246070188,23.776884,263.66,263.37,0.56920078]
[1732246070716,23.776884,263.64,263.37,0.56920078]
[1732246071214,140.17999965,263.85,263.38,2.5]
[1732246071387,37.82506448,263.75,263.4,3.47017663]
[1732246071708,37.82506448,263.71,263.44,3.47017663]
[1732246071894,37.82506448,263.77,263.44,3.47017663]
[1732246071895,37.82506448,263.69,263.45,0.56913666]
[1732246072096,37.82506448,263.65,263.4,3.47017663]
[1732246072308,37.82506448,263.77,263.41,11.4629688]
[1732246072495,37.82506448,263.77,263.47,3.47017663]
[1732246072693,37.82506448,263.72,263.48,0.56897457]
[1732246072894,37.82506448,263.72,263.42,0.56907042]
[1732246073184,37.82506448,263.7,263.42,0.56907042]
[1732246073389,37.82506448,263.72,263.42,0.56907042]
[1732246073693,23.776884,263.71,263.42,0.56907042]
[1732246073993,37.82506448,263.7,263.43,0.56911626]
[1732246074202,37.82506448,263.72,263.4,0.56915058]
[1732246074515,37.82506448,263.72,263.44,3.807]
[1732246074810,37.82506448,263.7,263.45,0.56909677]
[1732246075500,23.776884,263.69,263.45,0.56909677]
[1732246075698,37.82506448,263.66,263.37,0.56916355]
[1732246075892,23.776884,263.65,263.37,0.56916355]
[1732246077086,23.776884,263.67,263.37,0.56916355]
[1732246077289,23.776884,263.67,263.38,8.73059047]
[1732246077484,23.776884,263.67,263.4,3.807]
[1732246077722,5.100062,264.0,263.68,2.5]
[1732246078009,5.100062,264.0,263.77,20.0]
[1732246078202,5.100062,264.0,263.79,20.0]
[1732246078398,5.100062,264.0,263.8,5.86539822]
[1732246078601,5.100062,264.0,263.81,20.0]
[1732246078795,5.100062,264.0,263.82,9.6724366]
[1732246079002,5.100062,264.0,263.84,3.807]
[1732246079204,5.100062,264.0,263.86,3.807]
[1732246079389,5.100062,264.0,263.88,20.0]
[1732246079596,5.100062,264.0,263.83,20.0]
[1732246080112,5.100062,264.0,263.77,3.807]
[1732246080309,37.82506448,263.99,263.72,5.29720359]
[1732246080614,23.776884,263.99,263.73,20.0]
[1732246080912,61.60194848,263.99,263.73,20.0]
[1732246081111,23.776884,263.97,263.68,3.807]
[1732246081412,199.30194848,263.97,263.68,3.807]
[1732246081814,199.30194848,263.97,263.66,4.37560482]
[1732246081815,23.776884,263.94,263.66,4.37560482]
[1732246082111,37.82506448,263.89,263.55,4.37571452]
[1732246082311,37.82506448,263.85,263.55,3.807]
[1732246082516,23.776884,263.81,263.54,6.4076]
[1732246083016,23.776884,263.83,263.55,4.37588922]
[1732246083418,23.776884,263.84,263.55,0.56888922]
[1732246083711,23.776884,263.84,263.56,4.92359047]